bitfinex-derivatives/quotes_BTCF0:USTF0_20250805
["timestamp","ask_amount","ask_price","bid_price","bid_amount"]
[1754421114619,0.81965972,113830.0,113820.0,0.60596]
[1754421115315,0.82928264,113830.0,113820.0,0.60596]
[1754421115919,0.82928264,113830.0,113820.0,0.96676]
[1754421116120,0.82928264,113830.0,113820.0,0.3608]
[1754421116523,0.3038208,113820.0,113810.0,0.5365662]
[1754421116722,0.7711494,113820.0,113810.0,0.96676]
[1754421117222,0.3038208,113820.0,113810.0,0.96676]
[1754421117419,0.7711494,113820.0,113810.0,0.96676]
[1754421117616,0.3038208,113820.0,113810.0,0.96676]
[1754421117816,0.7711494,113820.0,113810.0,0.96676]
[1754421118013,0.3038208,113820.0,113810.0,0.96676]
[1754421118217,0.32755839,113820.0,113810.0,0.96676]
[1754421118426,0.3038208,113820.0,113810.0,0.96676]
[1754421119125,0.32755328,113820.0,113810.0,0.60596]
[1754421119527,0.35075328,113820.0,113810.0,0.96676]
[1754421119827,0.3038361,113810.0,113800.0,0.63427694]
[1754421120026,0.3038361,113810.0,113800.0,1.24023694]
[1754421120926,0.3038361,113810.0,113800.0,1.24223694]
[1754421121226,0.1757661,113810.0,113800.0,1.70956554]
[1754421121819,0.1787702,113820.0,113800.0,1.70956554]
[1754421122024,0.2429003,113820.0,113810.0,1.0038947]
[1754421122732,0.2666503,113820.0,113810.0,1.0038947]
[1754421125237,0.2666503,113820.0,113810.0,1.0058947]
[1754421125532,0.2666503,113820.0,113810.0,1.0068947]
[1754421126133,0.2666503,113820.0,113810.0,1.0078947]
[1754421126633,0.2666503,113820.0,113810.0,1.2707947]
[1754421127631,0.3709703,113820.0,113810.0,0.8034661]
[1754421127830,0.39469668,113820.0,113810.0,0.8034661]
[1754421129126,0.3709703,113820.0,113810.0,0.8034661]
[1754421129531,0.3709703,113820.0,113810.0,0.8054661]
[1754421132533,0.3709703,113820.0,113810.0,1.2727947]
[1754421134534,0.8382989,113820.0,113810.0,0.6297]
[1754421134733,0.8382989,113820.0,113810.0,1.23562]
[1754421135136,0.3709703,113820.0,113810.0,1.23562]
[1754421136837,0.3709703,113820.0,113810.0,1.4113862]
[1754421137538,0.3709703,113820.0,113810.0,1.23562]
[1754421138340,0.3709703,113820.0,113810.0,1.1484862]
[1754421141942,0.3709703,113820.0,113810.0,0.97272]
[1754421142543,0.3709703,113820.0,113810.0,1.1484861]
[1754421145042,0.3709703,113820.0,113810.0,0.97272]
[1754421145645,0.3709703,113820.0,113810.0,1.1484862]
[1754421146243,0.3709703,113820.0,113810.0,0.97272]
[1754421146646,0.39474153,113820.0,113810.0,0.3668]
[1754421146838,0.86207013,113820.0,113810.0,0.3668]
[1754421147039,0.86207013,113820.0,113810.0,0.61188]
[1754421147644,0.39474153,113820.0,113810.0,1.1484462]
[1754421147945,0.39474153,113820.0,113810.0,1.6157748]
[1754421148137,0.39474153,113820.0,113810.0,1.6117748]
[1754421148338,0.39474153,113820.0,113810.0,1.6097748]
[1754421148538,0.39474153,113820.0,113810.0,1.1424462]
[1754421148844,0.3709703,113820.0,113810.0,1.1424462]
[1754421150048,0.2666503,113820.0,113810.0,1.1424462]
[1754421150247,0.2666503,113820.0,113810.0,1.6097748]
[1754421150847,0.2666503,113820.0,113810.0,1.1424462]
[1754421151243,0.3172203,113820.0,113810.0,1.1424462]
[1754421151445,0.3702103,113820.0,113810.0,1.1424462]
[1754421151948,0.39397588,113820.0,113810.0,1.1424462]
[1754421152643,0.29041588,113820.0,113810.0,1.1424462]
[1754421152843,0.2429003,113820.0,113810.0,1.6097748]
[1754421153049,0.1989614,113820.0,113810.0,1.6097748]
[1754421153642,0.2231714,113820.0,113810.0,1.6097748]
[1754421154246,0.2231714,113820.0,113810.0,1.6137748]
[1754421154449,0.0232,113820.0,113810.0,1.6137748]
[1754421154950,0.1989506,113820.0,113810.0,1.6157748]
[1754421155857,0.0232,113820.0,113810.0,1.6157748]
[1754421156054,0.1989506,113820.0,113810.0,1.6157748]
[1754421156256,0.0232,113820.0,113810.0,1.6157748]
[1754421156548,0.1989506,113820.0,113810.0,1.6157748]
[1754421157250,0.0232,113820.0,113810.0,1.6157748]
[1754421158251,0.1989507,113820.0,113810.0,1.6157748]
[1754421158452,0.0232,113820.0,113810.0,1.6157748]
[1754421159047,0.0232,113820.0,113810.0,1.8786748]
[1754421161651,0.04741,113820.0,113810.0,1.8786748]
[1754421162247,0.2231606,113820.0,113810.0,1.8786748]
[1754421163351,0.2231606,113820.0,113810.0,1.2727948]
[1754421163548,0.3075706,113820.0,113810.0,1.8785148]
[1754421163756,0.3267206,113820.0,113810.0,1.8785148]
[1754421163954,0.3075706,113820.0,113810.0,1.8785148]
[1754421164154,0.3267206,113820.0,113810.0,1.8785148]
[1754421164957,0.2365306,113820.0,113810.0,1.8785148]
[1754421165157,0.2365306,113820.0,113810.0,1.2727948]
[1754421165359,0.2365306,113820.0,113810.0,1.8785148]
[1754421165552,0.3056406,113820.0,113810.0,1.8785148]
[1754421165856,0.3267206,113820.0,113810.0,1.8785148]
[1754421169756,0.3267206,113820.0,113810.0,1.2727948]
[1754421169956,0.3267206,113820.0,113810.0,1.8784748]
[1754421170256,0.2928806,113820.0,113810.0,1.4111462]
[1754421170459,0.3267206,113820.0,113810.0,1.4111462]
[1754421170656,0.3267206,113820.0,113810.0,0.6297]
[1754421170858,0.3267206,113820.0,113810.0,0.97248]
[1754421171855,0.35041305,113820.0,113810.0,0.97248]
[1754421172461,0.35041305,113820.0,113810.0,1.1482462]
[1754421173367,0.35041305,113820.0,113810.0,0.97248]
[1754421173663,0.35041305,113820.0,113810.0,1.1482462]
[1754421174259,0.35041305,113820.0,113810.0,0.97248]
[1754421175567,0.35041305,113820.0,113810.0,1.1482462]
[1754421176362,0.3267206,113820.0,113810.0,1.1482462]
[1754421177367,0.35041418,113820.0,113810.0,1.1482462]
[1754421177562,0.3267206,113820.0,113810.0,1.1482462]
[1754421178167,0.3267206,113820.0,113810.0,1.6155748]
[1754421179671,0.2229006,113820.0,113810.0,1.6155348]
[1754421181769,0.3271006,113820.0,113810.0,0.5425662]
[1754421182072,0.3271006,113820.0,113810.0,1.1482062]
[1754421184171,0.3271006,113820.0,113810.0,1.6155348]
[1754421185574,0.3271006,113820.0,113810.0,1.1482062]
[1754421185771,0.3271006,113820.0,113810.0,1.6155348]
[1754421185966,0.3271006,113820.0,113810.0,1.2547348]
[1754421186169,0.3271006,113820.0,113810.0,1.9763348]
[1754421188574,0.3271006,113820.0,113810.0,2.2392348]
[1754421191877,0.3271006,113820.0,113810.0,1.7719062]
[1754421193281,0.3271006,113820.0,113810.0,2.2392348]
[1754421194282,0.3271006,113820.0,113810.0,1.7719062]
[1754421194480,0.3271006,113820.0,113810.0,2.2392348]
[1754421198988,0.3271006,113820.0,113810.0,1.7719062]
[1754421199187,0.3271006,113820.0,113810.0,2.2392348]
[1754421200290,0.3271006,113820.0,113810.0,1.7719062]
[1754421200685,0.3271006,113820.0,113810.0,1.1662662]
[1754421200885,0.3271006,113820.0,113810.0,1.7717862]
[1754421203794,0.3271006,113820.0,113810.0,1.1662662]
[1754421203985,0.3271006,113820.0,113810.0,1.7717862]
[1754421204293,0.3271006,113820.0,113810.0,1.7717462]
[1754421204998,0.7944292,113820.0,113810.0,0.7276]
[1754421205287,0.81816214,113820.0,113810.0,0.97228]
[1754421205494,1.11816214,113820.0,113810.0,0.3668]
[1754421205693,1.11816214,113820.0,113810.0,0.97228]
[1754421206094,0.81816214,113820.0,113810.0,0.97228]
[1754421206294,0.81816214,113820.0,113810.0,0.96828]
[1754421206495,0.81816214,113820.0,113810.0,0.96628]
[1754421207497,0.81916214,113820.0,113810.0,0.96628]
[1754421207695,0.35183354,113820.0,113810.0,1.1420462]
[1754421207995,0.35283354,113820.0,113810.0,1.1420462]
[1754421208194,0.3291006,113820.0,113810.0,1.5028462]
[1754421208696,0.35281999,113820.0,113810.0,1.5028462]
[1754421211998,0.35281999,113820.0,113810.0,1.1420462]
[1754421214299,0.82014859,113820.0,113810.0,1.1420462]
[1754421214595,0.82014859,113820.0,113810.0,0.96628]
[1754421214796,0.2040261,113810.0,113800.0,0.3608]
[1754421215099,0.3005561,113810.0,113800.0,0.97598771]
[1754421215301,0.7678847,113810.0,113800.0,0.97598771]
[1754421215498,0.7678847,113810.0,113800.0,1.15176931]
[1754421216203,0.7678847,113810.0,113800.0,0.97598771]
[1754421216701,0.7678847,113810.0,113800.0,1.15176931]
[1754421217402,0.7678847,113810.0,113800.0,0.54628931]
[1754421217602,0.7678847,113810.0,113800.0,1.15176931]
[1754421218096,0.1757816,113800.0,113790.0,0.6244802]
[1754421218302,0.3005716,113800.0,113790.0,1.2299602]
[1754421219302,0.2489316,113800.0,113790.0,1.1880124]
[1754421219503,0.7679002,113800.0,113790.0,0.5425971]
[1754421219703,0.7679002,113800.0,113790.0,1.1480371]
[1754421219904,0.7679002,113800.0,113790.0,1.15772558]
[1754421220103,0.3005716,113800.0,113790.0,1.15772558]
[1754421220801,0.3005716,113800.0,113790.0,0.98192848]
[1754421221105,0.3005716,113800.0,113790.0,1.15772558]
[1754421223307,0.3005716,113800.0,113790.0,0.37648848]
[1754421223509,0.3005716,113800.0,113790.0,0.98192848]
[1754421223807,0.3005716,113800.0,113790.0,1.15772548]
[1754421225204,0.3005716,113800.0,113790.0,0.98192848]
[1754421225404,0.7679002,113800.0,113790.0,0.97224]
[1754421225608,0.7679002,113800.0,113790.0,0.98180626]
[1754421225803,0.7679002,113800.0,113790.0,0.97224]
[1754421226112,0.7679002,113800.0,113790.0,0.3668]
[1754421226404,0.7679002,113800.0,113790.0,1.148037]
[1754421228011,0.3005716,113800.0,113790.0,0.97224]
[1754421229207,0.7679002,113800.0,113790.0,0.3668]
[1754421229403,2.0717808,113800.0,113790.0,1e-07]
[1754421229608,0.2262024,113780.0,113770.0,1.57624]
[1754421229907,0.767931,113780.0,113770.0,2.18164]
[1754421230508,0.767931,113780.0,113770.0,0.6054]
[1754421230811,0.300618,113770.0,113760.0,0.3608]
[1754421231011,0.7679466,113770.0,113760.0,0.9662]
[1754421231213,0.300618,113770.0,113760.0,0.97556198]
[1754421232011,0.301618,113770.0,113760.0,0.99056198]
[1754421232212,0.301618,113770.0,113760.0,0.62976198]
[1754421232408,0.301618,113770.0,113760.0,0.99056198]
[1754421232610,0.301618,113770.0,113760.0,0.20020538]
[1754421232806,0.301618,113770.0,113760.0,1.16644538]
[1754421234008,0.301618,113770.0,113760.0,0.80564538]
[1754421234312,0.301618,113770.0,113760.0,1.16644538]
[1754421235413,0.301618,113770.0,113760.0,0.99060198]
[1754421235710,0.301618,113770.0,113760.0,1.16644538]
[1754421235911,0.7689466,113770.0,113760.0,0.3758]
[1754421236609,1.69344709,113770.0,113760.0,0.009]
[1754421236818,0.3039034,113760.0,113750.0,0.60544]
[1754421237016,0.3039189,113750.0,113740.0,0.36104]
[1754421237207,0.7712475,113750.0,113740.0,0.96648]
[1754421237516,0.3039343,113740.0,113730.0,1.5766]
[1754421237717,0.7712629,113740.0,113730.0,2.3579298]
[1754421238114,0.7712629,113740.0,113730.0,0.96628]
[1754421238719,0.7712629,113740.0,113730.0,0.97352]
[1754421239116,0.3039343,113740.0,113730.0,1.1494098]
[1754421239619,0.7712629,113740.0,113730.0,1.1494098]
[1754421240208,0.7712629,113740.0,113730.0,1.1424098]
[1754421240408,0.3099343,113740.0,113730.0,1.1434098]
[1754421240619,0.7257529,113740.0,113730.0,1.1434098]
[1754421240919,0.7822629,113740.0,113730.0,1.1434098]
[1754421241110,0.3149343,113740.0,113730.0,1.1434098]
[1754421241611,0.7822629,113740.0,113730.0,1.1437898]
[1754421242117,0.7307529,113740.0,113730.0,1.1437898]
[1754421242310,0.6920429,113740.0,113730.0,1.1437898]
[1754421242510,0.7822629,113740.0,113730.0,1.1437898]
[1754421243313,0.7822629,113740.0,113730.0,0.6071]
[1754421243514,0.7822629,113740.0,113730.0,0.7829898]
[1754421243815,0.7822629,113740.0,113730.0,0.6071]
[1754421244722,0.7822629,113740.0,113730.0,0.7827498]
[1754421244915,0.7822629,113740.0,113730.0,1.1437898]
[1754421245822,0.7822629,113740.0,113730.0,0.7829898]
[1754421246518,0.7822629,113740.0,113730.0,1.1437898]
[1754421248517,0.7822629,113740.0,113730.0,0.9679]
[1754421248721,0.7822629,113740.0,113730.0,1.1437898]
[1754421249124,0.80596952,113740.0,113730.0,1.1437898]
[1754421251230,0.23534092,113740.0,113730.0,1.1437898]
[1754421251424,0.80596952,113740.0,113730.0,1.1437898]
[1754421251822,0.80596952,113740.0,113730.0,0.36242]
[1754421252029,0.80596952,113740.0,113730.0,0.96806]
[1754421252231,0.80596952,113740.0,113730.0,1.1439498]
[1754421252622,0.80596952,113740.0,113730.0,0.5383098]
[1754421252922,0.80596952,113740.0,113730.0,1.1439498]
[1754421254434,0.80596952,113740.0,113730.0,0.96806]
[1754421254740,0.80596952,113740.0,113730.0,1.1439497]
[1754421255440,0.80596952,113740.0,113730.0,0.96806]
[1754421255636,0.85239952,113740.0,113730.0,0.96806]
[1754421257339,0.86163655,113740.0,113730.0,0.96806]
[1754421257736,0.85239952,113740.0,113730.0,1.1439498]
[1754421258039,0.85239952,113740.0,113730.0,0.96806]
[1754421259238,0.85239952,113740.0,113730.0,0.36242]
[1754421259438,0.85239952,113740.0,113730.0,0.96806]
[1754421260539,0.85239952,113740.0,113730.0,1.1439498]
[1754421261740,0.85239952,113740.0,113730.0,0.96806]
[1754421265644,0.85239952,113740.0,113730.0,1.1439498]
[1754421266541,0.38507092,113740.0,113730.0,1.1439498]
[1754421266844,0.85239952,113740.0,113730.0,0.96806]
[1754421267039,0.85239952,113740.0,113730.0,0.96744]
[1754421267245,0.85239952,113740.0,113730.0,0.96768]
[1754421268445,0.85239952,113740.0,113730.0,0.60688]
[1754421269044,0.85239952,113740.0,113730.0,0.00124]
[1754421269236,0.85239952,113740.0,113730.0,0.60692]
[1754421269844,0.85239952,113740.0,113730.0,0.60688]
[1754421270235,1.21319952,113740.0,113730.0,0.00124]
[1754421270441,1.21319952,113740.0,113730.0,0.001]
[1754421270645,1.21319952,113740.0,113730.0,0.60664]
[1754421270842,0.3001153,113720.0,113710.0,0.62432]
[1754421271047,0.79115052,113720.0,113710.0,0.96706]
[1754421271541,0.79115052,113720.0,113710.0,1.1429807]
[1754421272446,0.79115052,113720.0,113710.0,1.1479807]
[1754421272746,0.32382192,113720.0,113710.0,1.1479807]
[1754421272947,0.22335192,113720.0,113710.0,1.1479807]
[1754421273348,0.22335192,113720.0,113710.0,1.1449807]
[1754421273548,0.32582192,113720.0,113710.0,1.1449807]
[1754421274846,0.32582192,113720.0,113710.0,0.5373407]
[1754421275147,0.22535192,113720.0,113710.0,1.1430207]
[1754421277851,0.76074052,113720.0,113710.0,1.1430207]
[1754421278049,0.79315052,113720.0,113710.0,1.1430207]
[1754421281050,0.32582192,113720.0,113710.0,1.1430207]
[1754421281252,0.37226192,113720.0,113710.0,1.1430207]
[1754421283959,0.83959052,113720.0,113710.0,1.1430207]
[1754421285261,0.83959052,113720.0,113710.0,0.5373407]
[1754421285461,0.83959052,113720.0,113710.0,1.1430207]
[1754421286253,0.8158839,113720.0,113710.0,1.1430207]
[1754421287153,0.8158839,113720.0,113710.0,0.00062]
[1754421287351,0.3001307,113710.0,113700.0,0.43133092]
[1754421287549,0.1759362,113700.0,113690.0,0.3608]
[1754421287748,0.6931648,113700.0,113690.0,0.9671]
[1754421287952,0.7674748,113700.0,113690.0,0.9671]
[1754421288155,0.2764217,113690.0,113680.0,0.5373865]
[1754421288362,0.7674903,113690.0,113680.0,1.1430665]
[1754421288659,0.3001617,113690.0,113680.0,1.1430665]
[1754421288855,0.3001617,113690.0,113680.0,0.5373865]
[1754421289159,0.3001617,113690.0,113680.0,1.1430665]
[1754421289358,0.3001617,113690.0,113680.0,0.5373872]
[1754421289546,0.3001617,113690.0,113680.0,1.1431072]
[1754421289752,0.3001617,113690.0,113680.0,1.1451072]
[1754421290153,0.3001617,113690.0,113680.0,1.1471072]
[1754421290959,0.3001617,113690.0,113680.0,0.5413872]
[1754421291164,0.3001617,113690.0,113680.0,0.97114]
[1754421291361,0.7674903,113690.0,113680.0,0.97114]
[1754421292262,0.7674903,113690.0,113680.0,0.36542]
[1754421292463,0.7674903,113690.0,113680.0,1.1471471]
[1754421293666,0.7674903,113690.0,113680.0,0.97118]
[1754421294367,0.7674903,113690.0,113680.0,1.1471471]
[1754421294965,0.7674903,113690.0,113680.0,0.97118]
[1754421295359,0.7674903,113690.0,113680.0,1.1471472]
[1754421296470,0.7674903,113690.0,113680.0,0.97118]
[1754421300867,0.7674903,113690.0,113680.0,0.3648]
[1754421301074,0.7674903,113690.0,113680.0,0.9706]
[1754421301373,0.7674903,113690.0,113680.0,0.3648]
[1754421301767,0.7674903,113690.0,113680.0,0.9706]
[1754421302872,0.7674903,113690.0,113680.0,0.97084]
[1754421303075,0.7674903,113690.0,113680.0,0.97122]
[1754421304276,0.3001617,113690.0,113680.0,1.1471872]
[1754421304473,0.2495917,113690.0,113680.0,1.1471872]
[1754421305274,0.2679717,113690.0,113680.0,1.1471872]
[1754421305773,0.3006417,113690.0,113680.0,1.1471872]
[1754421306969,0.1996917,113690.0,113680.0,1.6145158]
[1754421307173,0.1996917,113690.0,113680.0,1.1471872]
[1754421307574,0.1759517,113690.0,113680.0,1.1471872]
[1754421307774,0.1994317,113690.0,113680.0,1.1471872]
[1754421309174,0.1994317,113690.0,113680.0,1.6145158]
[1754421310981,0.1994317,113690.0,113680.0,1.1471872]
[1754421314179,0.2873778,113710.0,113700.0,0.1765561]
[1754421314381,0.28695894,113710.0,113700.0,1.9713247]
[1754421314682,0.02348,113710.0,113700.0,1.9713247]
[1754421314880,0.3103061,113720.0,113710.0,0.1765406]
[1754421315087,0.3337861,113720.0,113710.0,1.0046692]
[1754421317388,0.3447861,113720.0,113710.0,1.0056692]
[1754421317782,0.2333507,113720.0,113710.0,1.0056692]
[1754421318092,0.2558307,113720.0,113710.0,1.0056692]
[1754421318487,0.2548307,113720.0,113710.0,1.0056692]
[1754421318888,0.2548307,113720.0,113710.0,0.5383406]
[1754421319088,0.2548307,113720.0,113710.0,1.0056692]
[1754421321789,0.2548307,113720.0,113710.0,1.2685692]
[1754421322592,0.2548307,113720.0,113710.0,0.8012406]
[1754421322894,0.2548307,113720.0,113710.0,1.2685692]
[1754421323694,0.3552407,113720.0,113710.0,0.8012406]
[1754421324399,0.3552407,113720.0,113710.0,1.2685692]
[1754421324693,0.3532407,113720.0,113710.0,1.2685692]
[1754421324888,0.3472407,113720.0,113710.0,1.2675692]
[1754421325086,0.3502407,113720.0,113710.0,1.2685692]
[1754421325286,0.3502407,113720.0,113710.0,1.8742492]
[1754421325488,0.3502407,113720.0,113710.0,1.4069206]
[1754421325890,0.3175107,113720.0,113710.0,1.4069206]
[1754421326694,0.3175107,113720.0,113710.0,1.4059206]
[1754421326897,0.3215107,113720.0,113710.0,1.4069206]
[1754421327096,0.3215107,113720.0,113710.0,1.8742492]
[1754421327391,0.3235107,113720.0,113710.0,1.8742492]
[1754421327598,0.3056907,113720.0,113710.0,1.8742492]
[1754421328096,0.3562407,113720.0,113710.0,1.2685692]
[1754421328396,0.3562407,113720.0,113710.0,1.8742892]
[1754421328597,0.3562407,113720.0,113710.0,1.4069606]
[1754421328797,0.3562407,113720.0,113710.0,1.8742892]
[1754421330599,0.3562407,113720.0,113710.0,1.4069606]
[1754421332397,0.3235107,113720.0,113710.0,1.8742892]
[1754421332996,0.2323507,113720.0,113710.0,1.8742892]
[1754421333199,0.2562507,113720.0,113710.0,1.8742892]
[1754421333801,0.3576807,113720.0,113710.0,1.8742892]
[1754421334301,0.3576807,113720.0,113710.0,1.4069606]
[1754421334500,0.3576807,113720.0,113710.0,1.8742892]
[1754421335002,0.3576807,113720.0,113710.0,1.4069607]
[1754421335298,0.8250093,113720.0,113710.0,0.6247]
[1754421335695,1.4682179,113720.0,113710.0,0.001]
[1754421335898,0.2102762,113700.0,113690.0,0.3608]
[1754421336202,0.7685948,113700.0,113690.0,0.00124]
[1754421336398,0.3012817,113690.0,113680.0,1.7544072]
[1754421336595,0.3012817,113690.0,113680.0,2.3607272]
[1754421337602,0.1998517,113690.0,113680.0,2.8280558]
[1754421337895,0.1998517,113690.0,113680.0,2.8320558]
[1754421338101,0.2008517,113690.0,113680.0,2.8320558]
[1754421338703,0.2473117,113690.0,113680.0,2.8320558]
[1754421338902,0.2473117,113690.0,113680.0,2.8340558]
[1754421340002,0.2463117,113690.0,113680.0,2.8300558]
[1754421340301,0.2473117,113690.0,113680.0,2.8320558]
[1754421340598,0.2234117,113690.0,113680.0,2.8320558]
[1754421340797,0.2473117,113690.0,113680.0,2.8320558]
[1754421342097,0.2651317,113690.0,113680.0,2.8320558]
[1754421342297,0.3262417,113690.0,113680.0,2.8320558]
[1754421342497,0.3487417,113690.0,113680.0,3.0949558]
[1754421343005,0.3487417,113690.0,113680.0,2.6276272]
[1754421344202,0.3487417,113690.0,113680.0,2.0213072]
[1754421344403,0.3487417,113690.0,113680.0,2.6281072]
[1754421346206,0.3487417,113690.0,113680.0,1.84534]
[1754421346406,0.3487417,113690.0,113680.0,2.45214]
[1754421346710,0.3487417,113690.0,113680.0,1.84534]
[1754421346904,0.3487417,113690.0,113680.0,1.8441]
[1754421347110,0.8160703,113690.0,113680.0,1.5812]
[1754421347310,0.8160703,113690.0,113680.0,2.18808]
[1754421348213,0.3487417,113690.0,113680.0,2.3652872]
[1754421348416,0.3487417,113690.0,113680.0,2.8326158]
[1754421349012,0.3487417,113690.0,113680.0,2.3652872]
[1754421349210,0.3487417,113690.0,113680.0,2.8326158]
[1754421350509,0.3487417,113690.0,113680.0,2.3652872]
[1754421350910,0.3487417,113690.0,113680.0,2.8326158]
[1754421351112,0.3487417,113690.0,113680.0,2.3652872]
[1754421352013,0.3487417,113690.0,113680.0,2.3652871]
[1754421352312,0.3487417,113690.0,113680.0,2.18932]
[1754421353610,0.8160703,113690.0,113680.0,2.18932]
[1754421353906,0.8160703,113690.0,113680.0,2.18808]
[1754421354303,0.8160703,113690.0,113680.0,1.5812]
[1754421354508,1.19972718,113690.0,113680.0,0.61416]
[1754421356104,1.20872063,113690.0,113680.0,0.61416]
[1754421356308,0.84792063,113690.0,113680.0,0.004]
[1754421356502,1.20872063,113690.0,113680.0,0.61444]
[1754421356702,1.68464863,113690.0,113680.0,0.5597136]
[1754421357514,0.3001026,113670.0,113660.0,0.00322]
[1754421357710,0.7674312,113670.0,113660.0,0.97522]
[1754421357910,0.7674312,113670.0,113660.0,0.61442]
[1754421358515,0.7674312,113670.0,113660.0,0.61742]
[1754421359612,0.7684312,113670.0,113660.0,0.00922]
[1754421359918,1.1292312,113670.0,113660.0,0.61796]
[1754421360704,0.79130088,113670.0,113660.0,0.61496]
[1754421360915,1.15210088,113670.0,113660.0,0.61496]
[1754421361303,0.7704312,113670.0,113660.0,0.61296]
[1754421361511,0.3041026,113670.0,113660.0,0.61618]
[1754421361710,0.3041026,113670.0,113660.0,0.97698]
[1754421362210,0.3041026,113670.0,113660.0,0.61618]
[1754421363715,0.3041026,113670.0,113660.0,0.97698]
[1754421363919,0.7714312,113670.0,113660.0,0.61618]
[1754421365618,0.79432064,113670.0,113660.0,0.61618]
[1754421366120,0.79432064,113670.0,113660.0,0.00422]
[1754421366316,0.79432064,113670.0,113660.0,0.61562]
[1754421366523,1.15512064,113670.0,113660.0,0.6124]
[1754421369526,1.15512064,113670.0,113660.0,0.001]
[1754421369826,1.15512064,113670.0,113660.0,0.6124]
[1754421371126,1.76648064,113670.0,113660.0,0.001]
[1754421374326,1.76648064,113670.0,113660.0,0.00224]
[1754421374632,1.76648064,113670.0,113660.0,0.00422]
[1754421374929,0.79432064,113670.0,113660.0,0.00422]
[1754421375124,0.32699204,113670.0,113660.0,0.00422]
[1754421375830,0.79432064,113670.0,113660.0,0.00422]
[1754421376030,1.15512064,113670.0,113660.0,0.00422]
[1754421376230,0.79432064,113670.0,113660.0,0.00422]
[1754421378433,0.79432064,113670.0,113660.0,0.36502]
[1754421378737,0.79432064,113670.0,113660.0,0.5410181]
[1754421379138,0.32699204,113670.0,113660.0,0.5410181]
[1754421379539,0.32699204,113670.0,113660.0,0.36502]
[1754421379736,0.32699204,113670.0,113660.0,0.5410181]
[1754421379934,0.32699204,113670.0,113660.0,0.1802181]
[1754421380237,0.79432064,113670.0,113660.0,0.00224]
[1754421380643,0.79432064,113670.0,113660.0,0.001]
[1754421381839,1.15512064,113670.0,113660.0,0.001]
[1754421383947,1.76620064,113670.0,113660.0,0.001]
[1754421384446,0.3022436,113650.0,113640.0,0.00124]
[1754421384643,0.3022591,113640.0,113630.0,1.21676]
[1754421384846,0.2274046,113630.0,113620.0,0.54912888]
[1754421385046,0.3022746,113630.0,113620.0,1.16108888]
[1754421385851,0.3032746,113630.0,113620.0,1.16908888]
[1754421386545,0.1770446,113630.0,113620.0,1.71197929]
[1754421386745,0.1770446,113630.0,113620.0,1.79392613]
[1754421386948,0.001,113630.0,113620.0,2.09392613]
[1754421387148,0.1770446,113630.0,113620.0,2.09392613]
[1754421387350,0.001,113630.0,113620.0,2.09392613]
[1754421387650,0.1770446,113630.0,113620.0,2.09392613]
[1754421387953,0.1770446,113630.0,113620.0,1.79392613]
[1754421388148,0.001,113630.0,113620.0,2.09392613]
[1754421388449,0.001,113630.0,113620.0,2.26994213]
[1754421388951,0.1770445,113630.0,113620.0,2.26994213]
[1754421389546,0.001,113630.0,113620.0,2.26994213]
[1754421389748,0.001,113630.0,113620.0,2.09392613]
[1754421390050,0.1770446,113630.0,113620.0,2.09392613]
[1754421393050,0.2003346,113630.0,113620.0,1.54465069]
[1754421393247,0.2124346,113630.0,113620.0,1.79392613]
[1754421393553,0.3032746,113630.0,113620.0,1.24425069]
[1754421394453,0.3032746,113630.0,113620.0,1.24441069]
[1754421395054,0.3497546,113630.0,113620.0,1.24441069]
[1754421396144,0.2468146,113630.0,113620.0,1.24441069]
[1754421396349,0.2235246,113630.0,113620.0,1.79368613]
[1754421396549,0.2468146,113630.0,113620.0,1.79368613]
[1754421397356,0.2468146,113630.0,113620.0,1.24441069]
[1754421397758,0.2636346,113630.0,113620.0,1.24441069]
[1754421398457,0.2757346,113630.0,113620.0,1.24441069]
[1754421398757,0.2589146,113630.0,113620.0,1.24441069]
[1754421399458,0.3497546,113630.0,113620.0,1.24441069]
[1754421400153,0.3497546,113630.0,113620.0,1.23536151]
[1754421400355,0.3497546,113630.0,113620.0,0.62364151]
[1754421400662,0.3497546,113630.0,113620.0,1.05990181]
[1754421400957,0.3497546,113630.0,113620.0,1.23596191]
[1754421401955,0.3497546,113630.0,113620.0,1.2449419]
[1754421402355,0.2468146,113630.0,113620.0,1.2449419]
[1754421402750,0.2752146,113630.0,113620.0,1.2449419]
[1754421402955,0.2920346,113630.0,113620.0,1.2449419]
[1754421403257,0.2468146,113630.0,113620.0,1.79421734]
[1754421404663,0.2468146,113630.0,113620.0,1.2449419]
[1754421404859,0.2468146,113630.0,113620.0,1.79421734]
[1754421405755,0.04748,113630.0,113620.0,1.79421734]
[1754421407164,0.04624,113630.0,113620.0,2.27023334]
[1754421407355,0.04424,113630.0,113620.0,2.27023334]
[1754421407557,0.04424,113630.0,113620.0,3.48755334]
[1754421408255,0.04424,113630.0,113620.0,2.9382779]
[1754421408562,0.04424,113630.0,113620.0,3.48755334]
[1754421408762,0.04424,113630.0,113620.0,3.40688028]
[1754421410661,0.04424,113630.0,113620.0,3.23086428]
[1754421410862,0.04424,113630.0,113620.0,3.40688028]
[1754421412753,0.024,113650.0,113640.0,0.1760291]
[1754421412960,0.3311983,113660.0,113650.0,0.1760136]
[1754421413160,0.3866483,113660.0,113650.0,1.00541598]
[1754421413362,0.3092463,113660.0,113650.0,1.00541598]
[1754421413664,0.3426463,113660.0,113650.0,1.00541598]
[1754421414061,0.3436463,113660.0,113650.0,1.00641598]
[1754421414565,0.2559563,113660.0,113650.0,1.00641598]
[1754421415065,0.200998,113660.0,113650.0,1.26931598]
[1754421415669,0.025,113660.0,113650.0,1.26931598]
[1754421416167,0.001,113660.0,113650.0,1.18238397]
[1754421417565,0.001,113660.0,113650.0,1.48238397]
[1754421418865,0.001,113660.0,113650.0,2.11138231]
[1754421423767,0.024,113680.0,113670.0,0.1759826]
[1754421423967,0.024,113680.0,113670.0,2.05786296]
[1754421424167,0.024,113680.0,113670.0,3.27478296]
[1754421424976,0.1999672,113680.0,113670.0,3.27478296]
[1754421425170,0.1999672,113680.0,113670.0,3.27578296]
[1754421425371,0.2059672,113680.0,113670.0,3.27578296]
[1754421425768,0.2099672,113680.0,113670.0,3.27578296]
[1754421425973,0.034,113680.0,113670.0,3.27578296]
[1754421426274,0.2365572,113680.0,113670.0,3.27578296]
[1754421426473,0.3046072,113680.0,113670.0,3.27578296]
[1754421427974,0.3046072,113680.0,113670.0,2.7267426]
[1754421428174,0.3046072,113680.0,113670.0,2.9896426]
[1754421430177,0.3046072,113680.0,113670.0,2.92720296]
[1754421430376,0.3046072,113680.0,113670.0,2.9900426]
[1754421430574,0.2996072,113680.0,113670.0,3.53984296]
[1754421431678,0.2996072,113680.0,113670.0,2.9910426]
[1754421432377,0.2996072,113680.0,113670.0,2.7281426]
[1754421436080,0.2996072,113680.0,113670.0,3.27694296]